[Event "Titled Tuesday Blitz May 30 Late 2023"]
[White "Zenin, Dmitry"]
[Black "Thorfinnsson, Bragi"]
[WhiteFideId "4127897"]
[BlackFideId "2300958"]
[WhiteElo "2215"]
[BlackElo "2322"]
[Result "0-1"]
[Round "03"]
[TimeControl "180+2"]
[Date "2023.05.31"]
[WhiteClock "0:00:03"]
[BlackClock "0:00:16"]

1. d4 {[%clk 0:03:00]}  d5 {[%clk 0:02:58]} 2. c4 {[%clk 0:03:00]}  e5 {[%clk 0:02:58]} 3. dxe5 {[%clk 0:03:00]}  Ne7 {[%clk 0:02:58]} 4. Nf3 {[%clk 0:02:55]}  Nbc6 {[%clk 0:02:56]} 5. cxd5 {[%clk 0:02:46]}  Qxd5 {[%clk 0:02:57]} 6. Qxd5 {[%clk 0:02:30]}  Nxd5 {[%clk 0:02:57]} 7. a3 {[%clk 0:02:30]}  Bg4 {[%clk 0:02:45]} 8. e4 {[%clk 0:02:25]}  Nb6 {[%clk 0:02:38]} 9. Bb5 {[%clk 0:02:23]}  Bd7 {[%clk 0:02:20]} 10. Nc3 {[%clk 0:02:21]}  a6 {[%clk 0:02:18]} 11. Be2 {[%clk 0:02:17]}  O-O-O {[%clk 0:02:10]} 12. Bf4 {[%clk 0:02:13]}  Re8 {[%clk 0:02:06]} 13. h3 {[%clk 0:02:10]}  h6 {[%clk 0:02:02]} 14. O-O-O {[%clk 0:02:04]}  g5 {[%clk 0:02:02]} 15. Bg3 {[%clk 0:02:02]}  Bg7 {[%clk 0:01:56]} 16. Nd5 {[%clk 0:02:01]}  Nxe5 {[%clk 0:01:52]} 17. Nxe5 {[%clk 0:01:37]}  Bxe5 {[%clk 0:01:53]} 18. Bxe5 {[%clk 0:01:37]}  Rxe5 {[%clk 0:01:54]} 19. Nf6 {[%clk 0:01:11]}  Bc6 {[%clk 0:01:52]} 20. Bg4+ {[%clk 0:01:02]}  Kb8 {[%clk 0:01:51]} 21. Bf5 {[%clk 0:01:02]}  Nc4 {[%clk 0:01:45]} 22. g4 {[%clk 0:00:31]}  Nd6 {[%clk 0:01:42]} 23. f3 {[%clk 0:00:30]}  h5 {[%clk 0:01:31]} 24. Kd2 {[%clk 0:00:23]}  Nxf5 {[%clk 0:01:20]} 25. gxf5 {[%clk 0:00:22]}  Rh6 {[%clk 0:01:20]} 26. Ng8 {[%clk 0:00:20]}  Rh8 {[%clk 0:01:17]} 27. Nf6 {[%clk 0:00:20]}  Ba4 {[%clk 0:01:02]} 28. Rc1 {[%clk 0:00:18]}  Rd8+ {[%clk 0:01:02]} 29. Ke3 {[%clk 0:00:18]}  Rd6 {[%clk 0:01:02]} 30. Nh7 {[%clk 0:00:16]}  f6 {[%clk 0:00:57]} 31. Nf8 {[%clk 0:00:16]}  Rb6 {[%clk 0:00:50]} 32. b4 {[%clk 0:00:15]}  Re7 {[%clk 0:00:42]} 33. Ne6 {[%clk 0:00:14]}  Rd6 {[%clk 0:00:34]} 34. Rc3 {[%clk 0:00:08]}  Bd7 {[%clk 0:00:30]} 35. Nc5 {[%clk 0:00:07]}  Bxf5 {[%clk 0:00:30]} 36. h4 {[%clk 0:00:07]}  g4 {[%clk 0:00:27]} 37. Kf4 {[%clk 0:00:07]}  Bc8 {[%clk 0:00:25]} 38. fxg4 {[%clk 0:00:06]}  hxg4 {[%clk 0:00:24]} 39. h5 {[%clk 0:00:06]}  b6 {[%clk 0:00:24]} 40. Nd3 {[%clk 0:00:05]}  Rd4 {[%clk 0:00:22]} 41. Nf2 {[%clk 0:00:04]}  f5 {[%clk 0:00:19]} 42. h6 {[%clk 0:00:04]}  fxe4 {[%clk 0:00:19]} 43. h7 {[%clk 0:00:04]}  e3+ {[%clk 0:00:19]} 44. Kg3 {[%clk 0:00:04]}  Rd8 {[%clk 0:00:16]} 45. h8=Q {[%clk 0:00:03]}  Rxh8 {[%clk 0:00:16]} 46. Rxh8 {[%clk 0:00:03]}  e2 {[%clk 0:00:17]} 47. Nd3 {[%clk 0:00:03]}  Re3+ {[%clk 0:00:15]} 48. Kf2 {[%clk 0:00:03]}  e1=Q+ {[%clk 0:00:15]} 49. Nxe1 {[%clk 0:00:03]}  Rxc3 {[%clk 0:00:16]} 0-1


[Site "https://www.chess.com"]

[Event "Titled Tuesday Blitz May 30 Late 2023"]
[White "Golubev, Mikhail"]
[Black "Lalanne, Pablo"]
[WhiteFideId "14100983"]
[BlackFideId "112151"]
[WhiteElo "2374"]
[BlackElo "2120"]
[Result "1-0"]
[Round "03"]
[TimeControl "180+2"]
[Date "2023.05.31"]
[WhiteClock "0:00:11"]
[BlackClock "0:00:11"]

1. e4 {[%clk 0:03:00]}  c5 {[%clk 0:02:58]} 2. Nf3 {[%clk 0:03:00]}  d6 {[%clk 0:02:59]} 3. d4 {[%clk 0:03:00]}  cxd4 {[%clk 0:02:59]} 4. Nxd4 {[%clk 0:03:01]}  Nf6 {[%clk 0:02:59]} 5. Nc3 {[%clk 0:03:02]}  Nc6 {[%clk 0:03:00]} 6. Bc4 {[%clk 0:03:01]}  Qb6 {[%clk 0:03:00]} 7. Ndb5 {[%clk 0:02:59]}  a6 {[%clk 0:02:38]} 8. Be3 {[%clk 0:02:57]}  Qa5 {[%clk 0:02:37]} 9. Nd4 {[%clk 0:02:57]}  e6 {[%clk 0:02:29]} 10. O-O {[%clk 0:02:54]}  Be7 {[%clk 0:02:29]} 11. Bb3 {[%clk 0:02:54]}  O-O {[%clk 0:02:28]} 12. f4 {[%clk 0:02:54]}  Qc7 {[%clk 0:02:24]} 13. Qf3 {[%clk 0:02:54]}  Bd7 {[%clk 0:02:04]} 14. f5 {[%clk 0:02:44]}  Nxd4 {[%clk 0:02:00]} 15. Bxd4 {[%clk 0:02:44]}  e5 {[%clk 0:01:58]} 16. Bf2 {[%clk 0:02:30]}  Bc6 {[%clk 0:01:55]} 17. Rae1 {[%clk 0:02:17]}  b5 {[%clk 0:01:55]} 18. Bh4 {[%clk 0:02:04]}  b4 {[%clk 0:00:49]} 19. Bxf6 {[%clk 0:01:58]}  Bxf6 {[%clk 0:00:49]} 20. Nd5 {[%clk 0:01:56]}  Bxd5 {[%clk 0:00:47]} 21. Bxd5 {[%clk 0:01:56]}  Rac8 {[%clk 0:00:47]} 22. Re2 {[%clk 0:01:54]}  a5 {[%clk 0:00:36]} 23. Rd1 {[%clk 0:01:41]}  Qb6+ {[%clk 0:00:36]} 24. Kh1 {[%clk 0:01:40]}  Rc5 {[%clk 0:00:35]} 25. Bb3 {[%clk 0:01:27]}  Qc6 {[%clk 0:00:33]} 26. Qd3 {[%clk 0:01:16]}  a4 {[%clk 0:00:30]} 27. Bd5 {[%clk 0:01:16]}  Qc7 {[%clk 0:00:30]} 28. Rf1 {[%clk 0:00:30]}  Rc8 {[%clk 0:00:29]} 29. Rff2 {[%clk 0:00:31]}  a3 {[%clk 0:00:20]} 30. b3 {[%clk 0:00:30]}  Rc3 {[%clk 0:00:20]} 31. Qd1 {[%clk 0:00:30]}  Qb6 {[%clk 0:00:18]} 32. g3 {[%clk 0:00:28]}  h6 {[%clk 0:00:17]} 33. Kg2 {[%clk 0:00:28]}  R8c5 {[%clk 0:00:15]} 34. Rf3 {[%clk 0:00:25]}  Qc7 {[%clk 0:00:16]} 35. Rxc3 {[%clk 0:00:18]}  Rxc3 {[%clk 0:00:17]} 36. Bc4 {[%clk 0:00:19]}  Qc5 {[%clk 0:00:16]} 37. Rd2 {[%clk 0:00:13]}  Be7 {[%clk 0:00:13]} 38. Rd3 {[%clk 0:00:11]}  Rxd3 {[%clk 0:00:11]} 39. Qxd3 {[%clk 0:00:11]} 1-0


[Site "https://www.chess.com"]

[Event "Titled Tuesday Blitz May 30 Late 2023"]
[White "Gerbelli Neto, Eduardo"]
[Black "Bilan, Danila"]
[WhiteFideId "2103281"]
[BlackFideId "24161918"]
[WhiteElo "2178"]
[BlackElo "2182"]
[Result "0-1"]
[Round "03"]
[TimeControl "180+2"]
[Date "2023.05.31"]
[WhiteClock "0:00:07"]
[BlackClock "0:00:07"]

1. e4 {[%clk 0:03:00]}  c6 {[%clk 0:02:58]} 2. d4 {[%clk 0:03:00]}  d5 {[%clk 0:02:59]} 3. exd5 {[%clk 0:03:01]}  cxd5 {[%clk 0:02:58]} 4. c4 {[%clk 0:03:02]}  Nf6 {[%clk 0:02:58]} 5. Nc3 {[%clk 0:03:02]}  Nc6 {[%clk 0:02:58]} 6. Nf3 {[%clk 0:03:03]}  Bg4 {[%clk 0:02:57]} 7. cxd5 {[%clk 0:03:03]}  Nxd5 {[%clk 0:02:57]} 8. Qb3 {[%clk 0:03:04]}  Bxf3 {[%clk 0:02:57]} 9. gxf3 {[%clk 0:03:05]}  e6 {[%clk 0:02:47]} 10. Qxb7 {[%clk 0:03:04]}  Nxd4 {[%clk 0:02:47]} 11. Bb5+ {[%clk 0:03:05]}  Nxb5 {[%clk 0:02:47]} 12. Qc6+ {[%clk 0:03:05]}  Ke7 {[%clk 0:02:47]} 13. Qxb5 {[%clk 0:03:06]}  Qd7 {[%clk 0:02:48]} 14. Nxd5+ {[%clk 0:03:02]}  Qxd5 {[%clk 0:02:49]} 15. Bg5+ {[%clk 0:03:01]}  f6 {[%clk 0:02:48]} 16. Qxd5 {[%clk 0:03:02]}  exd5 {[%clk 0:02:49]} 17. Be3 {[%clk 0:02:41]}  Ke6 {[%clk 0:02:46]} 18. O-O-O {[%clk 0:02:41]}  Rc8+ {[%clk 0:02:40]} 19. Kb1 {[%clk 0:02:41]}  Bc5 {[%clk 0:02:40]} 20. Rhe1 {[%clk 0:02:41]}  Kd6 {[%clk 0:02:10]} 21. Bf4+ {[%clk 0:02:13]}  Kc6 {[%clk 0:02:07]} 22. Re6+ {[%clk 0:02:04]}  Kd7 {[%clk 0:02:02]} 23. Ra6 {[%clk 0:01:48]}  Bxf2 {[%clk 0:01:08]} 24. Rxd5+ {[%clk 0:01:48]}  Ke7 {[%clk 0:01:07]} 25. Bg3 {[%clk 0:01:26]}  Bg1 {[%clk 0:00:52]} 26. Rd1 {[%clk 0:01:22]}  Bb6 {[%clk 0:00:50]} 27. a4 {[%clk 0:01:08]}  Rhd8 {[%clk 0:00:37]} 28. Re1+ {[%clk 0:01:08]}  Kf7 {[%clk 0:00:33]} 29. a5 {[%clk 0:01:08]}  Bd4 {[%clk 0:00:31]} 30. Rae6 {[%clk 0:01:06]}  Rd7 {[%clk 0:00:22]} 31. Rd6 {[%clk 0:00:54]}  Rxd6 {[%clk 0:00:15]} 32. Bxd6 {[%clk 0:00:55]}  Rc6 {[%clk 0:00:15]} 33. Re7+ {[%clk 0:00:50]}  Kg6 {[%clk 0:00:14]} 34. Ba3 {[%clk 0:00:44]}  h5 {[%clk 0:00:14]} 35. Rd7 {[%clk 0:00:42]}  Bg1 {[%clk 0:00:11]} 36. h3 {[%clk 0:00:38]}  h4 {[%clk 0:00:07]} 37. Bf8 {[%clk 0:00:38]}  Kf5 {[%clk 0:00:05]} 38. Rxg7 {[%clk 0:00:38]}  Bf2 {[%clk 0:00:04]} 39. Rb7 {[%clk 0:00:31]}  Rc8 {[%clk 0:00:03]} 40. Bb4 {[%clk 0:00:27]}  Rg8 {[%clk 0:00:03]} 41. Bc3 {[%clk 0:00:25]}  Rg3 {[%clk 0:00:03]} 42. Rf7 {[%clk 0:00:25]}  Rxh3 {[%clk 0:00:03]} 43. Rxf6+ {[%clk 0:00:26]}  Kg5 {[%clk 0:00:03]} 44. f4+ {[%clk 0:00:24]}  Kg4 {[%clk 0:00:03]} 45. Be5 {[%clk 0:00:20]}  Rh1+ {[%clk 0:00:03]} 46. Ka2 {[%clk 0:00:20]}  Re1 {[%clk 0:00:04]} 47. Rg6+ {[%clk 0:00:19]}  Kf5 {[%clk 0:00:04]} 48. Rg5+ {[%clk 0:00:18]}  Ke6 {[%clk 0:00:03]} 49. Rh5 {[%clk 0:00:18]}  Bg3 {[%clk 0:00:03]} 50. Bb8 {[%clk 0:00:14]}  a6 {[%clk 0:00:03]} 51. Rh6+ {[%clk 0:00:13]}  Kf5 {[%clk 0:00:04]} 52. Rxa6 {[%clk 0:00:13]}  h3 {[%clk 0:00:04]} 53. Rh6 {[%clk 0:00:13]}  h2 {[%clk 0:00:05]} 54. Rh5+ {[%clk 0:00:12]}  Kg4 {[%clk 0:00:03]} 55. Rh8 {[%clk 0:00:12]}  h1=Q {[%clk 0:00:03]} 56. Rxh1 {[%clk 0:00:12]}  Rxh1 {[%clk 0:00:04]} 57. a6 {[%clk 0:00:12]}  Bf2 {[%clk 0:00:04]} 58. a7 {[%clk 0:00:12]}  Bxa7 {[%clk 0:00:05]} 59. Bxa7 {[%clk 0:00:13]}  Kxf4 {[%clk 0:00:05]} 60. Bd4 {[%clk 0:00:13]}  Ke4 {[%clk 0:00:05]} 61. Bc3 {[%clk 0:00:14]}  Kd5 {[%clk 0:00:06]} 62. Kb3 {[%clk 0:00:15]}  Kc5 {[%clk 0:00:06]} 63. Kc2 {[%clk 0:00:16]}  Kc4 {[%clk 0:00:06]} 64. b3+ {[%clk 0:00:16]}  Kd5 {[%clk 0:00:06]} 65. b4 {[%clk 0:00:16]}  Kc4 {[%clk 0:00:06]} 66. Bd2 {[%clk 0:00:17]}  Rh2 {[%clk 0:00:06]} 67. Kc1 {[%clk 0:00:15]}  Kb3 {[%clk 0:00:05]} 68. Kd1 {[%clk 0:00:14]}  Kc4 {[%clk 0:00:04]} 69. Kc1 {[%clk 0:00:10]}  Kd3 {[%clk 0:00:04]} 70. Bf4 {[%clk 0:00:10]}  Rc2+ {[%clk 0:00:04]} 71. Kb1 {[%clk 0:00:10]}  Kc3 {[%clk 0:00:05]} 72. Bd6 {[%clk 0:00:10]}  Rd2 {[%clk 0:00:03]} 73. Be5+ {[%clk 0:00:08]}  Kb3 {[%clk 0:00:03]} 74. Bf4 {[%clk 0:00:07]}  Rd1+ {[%clk 0:00:03]} 75. Bc1 {[%clk 0:00:08]}  Kxb4 {[%clk 0:00:02]} 76. Kc2 {[%clk 0:00:08]}  Rf1 {[%clk 0:00:02]} 77. Bd2+ {[%clk 0:00:08]}  Kc4 {[%clk 0:00:02]} 78. Ba5 {[%clk 0:00:08]}  Rf2+ {[%clk 0:00:03]} 79. Kd1 {[%clk 0:00:08]}  Kd3 {[%clk 0:00:03]} 80. Ke1 {[%clk 0:00:08]}  Re2+ {[%clk 0:00:03]} 81. Kf1 {[%clk 0:00:08]}  Ke3 {[%clk 0:00:04]} 82. Bb6+ {[%clk 0:00:07]}  Kf3 {[%clk 0:00:05]} 83. Ba5 {[%clk 0:00:07]}  Ra2 {[%clk 0:00:05]} 84. Be1 {[%clk 0:00:07]}  Ra1 {[%clk 0:00:05]} 85. Kg1 {[%clk 0:00:06]}  Rxe1+ {[%clk 0:00:06]} 86. Kh2 {[%clk 0:00:07]}  Re4 {[%clk 0:00:06]} 87. Kh3 {[%clk 0:00:07]}  Kf2 {[%clk 0:00:06]} 88. Kh2 {[%clk 0:00:07]}  Rh4# {[%clk 0:00:07]} 0-1


[Site "https://www.chess.com"]

[Event "Titled Tuesday Blitz May 30 Late 2023"]
[White "SergioMoralesG"]
[Black "Qiao, Cindy"]
[BlackFideId "2620243"]
[WhiteElo "2542"]
[BlackElo "1777"]
[Result "0-1"]
[Round "03"]
[TimeControl "180+2"]
[Date "2023.05.31"]
[WhiteClock "0:00:02"]
[BlackClock "0:00:17"]

1. e4 {[%clk 0:03:00]}  e5 {[%clk 0:02:59]} 2. Nf3 {[%clk 0:03:00]}  Nc6 {[%clk 0:02:59]} 3. Nc3 {[%clk 0:03:00]}  Nf6 {[%clk 0:02:59]} 4. h3 {[%clk 0:03:00]}  d5 {[%clk 0:02:58]} 5. exd5 {[%clk 0:03:00]}  Nxd5 {[%clk 0:02:59]} 6. Bb5 {[%clk 0:02:59]}  Nxc3 {[%clk 0:02:56]} 7. bxc3 {[%clk 0:02:59]}  Bd6 {[%clk 0:02:55]} 8. O-O {[%clk 0:02:59]}  O-O {[%clk 0:02:45]} 9. Re1 {[%clk 0:02:58]}  Qf6 {[%clk 0:02:38]} 10. d4 {[%clk 0:02:40]}  exd4 {[%clk 0:02:34]} 11. cxd4 {[%clk 0:02:39]}  Nb4 {[%clk 0:02:20]} 12. c3 {[%clk 0:02:24]}  Nd5 {[%clk 0:02:19]} 13. Bd3 {[%clk 0:02:17]}  h6 {[%clk 0:02:13]} 14. c4 {[%clk 0:02:01]}  Nf4 {[%clk 0:02:10]} 15. c5 {[%clk 0:01:40]}  Nxd3 {[%clk 0:02:03]} 16. Qxd3 {[%clk 0:01:40]}  Bf4 {[%clk 0:01:55]} 17. Bxf4 {[%clk 0:01:30]}  Qxf4 {[%clk 0:01:56]} 18. Re7 {[%clk 0:01:22]}  Be6 {[%clk 0:01:35]} 19. g3 {[%clk 0:01:14]}  Qf6 {[%clk 0:01:34]} 20. Rxc7 {[%clk 0:01:14]}  Bd5 {[%clk 0:01:28]} 21. Ne5 {[%clk 0:01:08]}  Rfe8 {[%clk 0:01:24]} 22. Rb1 {[%clk 0:01:03]}  Rad8 {[%clk 0:01:06]} 23. Qc3 {[%clk 0:00:56]}  Qf5 {[%clk 0:00:59]} 24. Rbxb7 {[%clk 0:00:51]}  Rxe5 {[%clk 0:00:57]} 25. dxe5 {[%clk 0:00:47]}  Bxb7 {[%clk 0:00:48]} 26. c6 {[%clk 0:00:34]}  Qe4 {[%clk 0:00:41]} 27. Qb3 {[%clk 0:00:15]}  Qe1+ {[%clk 0:00:40]} 28. Kg2 {[%clk 0:00:13]}  Qe4+ {[%clk 0:00:32]} 29. Kh2 {[%clk 0:00:10]}  Qf5 {[%clk 0:00:28]} 30. Qe3 {[%clk 0:00:02]}  Ba6 {[%clk 0:00:25]} 31. Rxa7 {[%clk 0:00:02]}  Bd3 {[%clk 0:00:20]} 32. c7 {[%clk 0:00:01]}  Rc8 {[%clk 0:00:19]} 33. Qd4 {[%clk 0:00:02]}  Be4 {[%clk 0:00:17]} 0-1


[Site "https://www.chess.com"]

[Event "Titled Tuesday Blitz May 30 Late 2023"]
[White "Arun, Siddharth"]
[Black "Ozates, Tuna"]
[WhiteFideId "2079178"]
[BlackFideId "6354521"]
[WhiteElo "2356"]
[BlackElo "2151"]
[Result "0-1"]
[Round "03"]
[TimeControl "180+2"]
[Date "2023.05.31"]
[WhiteClock "0:00:34"]
[BlackClock "0:00:54"]

1. d4 {[%clk 0:03:00]}  f5 {[%clk 0:02:50]} 2. Nc3 {[%clk 0:02:59]}  Nf6 {[%clk 0:02:49]} 3. Bg5 {[%clk 0:02:59]}  e6 {[%clk 0:02:49]} 4. e4 {[%clk 0:02:59]}  fxe4 {[%clk 0:02:49]} 5. Nxe4 {[%clk 0:02:59]}  Be7 {[%clk 0:02:49]} 6. Bxf6 {[%clk 0:02:54]}  Bxf6 {[%clk 0:02:50]} 7. c3 {[%clk 0:02:53]}  O-O {[%clk 0:02:50]} 8. Bd3 {[%clk 0:02:53]}  Qe8 {[%clk 0:02:45]} 9. Nf3 {[%clk 0:02:50]}  Nc6 {[%clk 0:02:43]} 10. Qc2 {[%clk 0:02:49]}  h6 {[%clk 0:02:43]} 11. O-O-O {[%clk 0:02:48]}  Qh5 {[%clk 0:02:40]} 12. h3 {[%clk 0:02:46]}  Be7 {[%clk 0:02:31]} 13. g4 {[%clk 0:02:43]}  Qa5 {[%clk 0:02:30]} 14. Nfd2 {[%clk 0:01:59]}  Qxa2 {[%clk 0:02:28]} 15. Rhf1 {[%clk 0:01:55]}  Na5 {[%clk 0:02:12]} 16. f4 {[%clk 0:01:48]}  d6 {[%clk 0:02:12]} 17. g5 {[%clk 0:01:37]}  Bd7 {[%clk 0:02:11]} 18. gxh6 {[%clk 0:01:36]}  Ba4 {[%clk 0:02:11]} 19. Qb1 {[%clk 0:01:09]}  Qxb1+ {[%clk 0:02:08]} 20. Bxb1 {[%clk 0:01:09]}  Bxd1 {[%clk 0:02:08]} 21. hxg7 {[%clk 0:01:09]}  Kxg7 {[%clk 0:02:05]} 22. Kxd1 {[%clk 0:01:08]}  Rh8 {[%clk 0:02:01]} 23. Rg1+ {[%clk 0:01:08]}  Kf7 {[%clk 0:02:00]} 24. Nf3 {[%clk 0:01:04]}  Rag8 {[%clk 0:01:59]} 25. Nfg5+ {[%clk 0:01:04]}  Bxg5 {[%clk 0:01:59]} 26. Nxg5+ {[%clk 0:01:04]}  Kf6 {[%clk 0:01:49]} 27. Ke2 {[%clk 0:01:04]}  Nc4 {[%clk 0:01:43]} 28. b3 {[%clk 0:01:00]}  Nb6 {[%clk 0:01:43]} 29. c4 {[%clk 0:00:59]}  Nd7 {[%clk 0:01:39]} 30. Kf3 {[%clk 0:00:59]}  c5 {[%clk 0:01:16]} 31. h4 {[%clk 0:00:50]}  cxd4 {[%clk 0:01:13]} 32. h5 {[%clk 0:00:49]}  e5 {[%clk 0:01:06]} 33. Bg6 {[%clk 0:00:38]}  exf4 {[%clk 0:01:03]} 34. Kxf4 {[%clk 0:00:37]}  Ne5 {[%clk 0:00:59]} 35. Ne4+ {[%clk 0:00:37]}  Ke7 {[%clk 0:00:59]} 36. Kg5 {[%clk 0:00:34]}  Nxg6 {[%clk 0:00:54]} 37. hxg6 {[%clk 0:00:34]}  Rxg6+ {[%clk 0:00:54]} 0-1


[Site "https://www.chess.com"]

[Event "Titled Tuesday Blitz May 30 Late 2023"]
[White "Dragomirescu, Calin"]
[Black "Moral Garcia, Serafin"]
[WhiteFideId "1200895"]
[BlackFideId "2201925"]
[WhiteElo "2010"]
[BlackElo "2274"]
[Result "0-1"]
[Round "03"]
[TimeControl "180+2"]
[Date "2023.05.31"]
[WhiteClock "0:02:11"]
[BlackClock "0:01:41"]

1. d4 {[%clk 0:03:00]}  Nf6 {[%clk 0:02:59]} 2. Nf3 {[%clk 0:02:54]}  g6 {[%clk 0:02:55]} 3. c4 {[%clk 0:02:54]}  Bg7 {[%clk 0:02:55]} 4. Nc3 {[%clk 0:02:55]}  d5 {[%clk 0:02:51]} 5. cxd5 {[%clk 0:02:54]}  Nxd5 {[%clk 0:02:51]} 6. e4 {[%clk 0:02:54]}  Nxc3 {[%clk 0:02:51]} 7. bxc3 {[%clk 0:02:55]}  c5 {[%clk 0:02:52]} 8. Rb1 {[%clk 0:02:55]}  O-O {[%clk 0:02:50]} 9. Be2 {[%clk 0:02:55]}  Nc6 {[%clk 0:02:45]} 10. d5 {[%clk 0:02:55]}  Ne5 {[%clk 0:02:39]} 11. Nxe5 {[%clk 0:02:52]}  Bxe5 {[%clk 0:02:39]} 12. Bd2 {[%clk 0:02:52]}  Qd6 {[%clk 0:02:37]} 13. g3 {[%clk 0:02:51]}  f5 {[%clk 0:02:30]} 14. f4 {[%clk 0:02:47]}  Bg7 {[%clk 0:02:30]} 15. exf5 {[%clk 0:02:43]}  Bxf5 {[%clk 0:02:20]} 16. Rxb7 {[%clk 0:02:41]}  Qxd5 {[%clk 0:02:17]} 17. Bf3 {[%clk 0:02:38]}  Be4 {[%clk 0:02:17]} 18. Rd7 {[%clk 0:02:21]}  Qxd7 {[%clk 0:01:48]} 19. Bxe4 {[%clk 0:02:20]}  Rab8 {[%clk 0:01:47]} 20. O-O {[%clk 0:02:14]}  Rfd8 {[%clk 0:01:43]} 21. Be3 {[%clk 0:02:11]}  Qxd1 {[%clk 0:01:41]} 0-1


[Site "https://www.chess.com"]

[Event "Titled Tuesday Blitz May 30 Late 2023"]
[White "Tissir, Mohamed"]
[Black "Ardila, Oscar Humberto"]
[WhiteFideId "9000240"]
[BlackFideId "4404742"]
[WhiteElo "2458"]
[BlackElo "1918"]
[Result "1-0"]
[Round "03"]
[TimeControl "180+2"]
[Date "2023.05.31"]
[WhiteClock "0:00:13"]
[BlackClock "0:00:05"]

1. e4 {[%clk 0:03:00]}  e5 {[%clk 0:02:57]} 2. Nf3 {[%clk 0:03:00]}  Nc6 {[%clk 0:02:57]} 3. Bc4 {[%clk 0:03:00]}  Nf6 {[%clk 0:02:57]} 4. d3 {[%clk 0:03:01]}  Bc5 {[%clk 0:02:57]} 5. c3 {[%clk 0:03:01]}  d6 {[%clk 0:02:57]} 6. Bb3 {[%clk 0:03:01]}  O-O {[%clk 0:02:56]} 7. Nbd2 {[%clk 0:03:01]}  Ne7 {[%clk 0:02:54]} 8. Nf1 {[%clk 0:03:01]}  Ng6 {[%clk 0:02:54]} 9. Ng3 {[%clk 0:03:01]}  c6 {[%clk 0:02:52]} 10. O-O {[%clk 0:02:59]}  a5 {[%clk 0:02:52]} 11. a4 {[%clk 0:02:47]}  Qe7 {[%clk 0:02:49]} 12. h3 {[%clk 0:02:41]}  Be6 {[%clk 0:02:49]} 13. d4 {[%clk 0:02:39]}  exd4 {[%clk 0:02:42]} 14. cxd4 {[%clk 0:02:39]}  Bb4 {[%clk 0:02:35]} 15. Nf5 {[%clk 0:01:40]}  Qd7 {[%clk 0:02:35]} 16. Ng3 {[%clk 0:01:40]}  Rfe8 {[%clk 0:02:32]} 17. d5 {[%clk 0:01:36]}  cxd5 {[%clk 0:02:29]} 18. exd5 {[%clk 0:01:36]}  Bf5 {[%clk 0:02:28]} 19. Nxf5 {[%clk 0:01:34]}  Qxf5 {[%clk 0:02:27]} 20. Be3 {[%clk 0:01:22]}  Nf4 {[%clk 0:02:26]} 21. Bxf4 {[%clk 0:01:19]}  Qxf4 {[%clk 0:02:25]} 22. Qd3 {[%clk 0:01:20]}  Re4 {[%clk 0:02:09]} 23. Rac1 {[%clk 0:01:14]}  Rae8 {[%clk 0:02:08]} 24. Rc7 {[%clk 0:01:13]}  b6 {[%clk 0:02:06]} 25. Bc4 {[%clk 0:01:06]}  h6 {[%clk 0:01:55]} 26. b3 {[%clk 0:01:04]}  Bc5 {[%clk 0:01:52]} 27. Bb5 {[%clk 0:00:59]}  R4e7 {[%clk 0:01:45]} 28. Rxc5 {[%clk 0:00:54]}  bxc5 {[%clk 0:01:27]} 29. Bxe8 {[%clk 0:00:53]}  Rxe8 {[%clk 0:01:26]} 30. Qa6 {[%clk 0:00:46]}  Rb8 {[%clk 0:01:18]} 31. Qxa5 {[%clk 0:00:45]}  Rxb3 {[%clk 0:01:16]} 32. Qd8+ {[%clk 0:00:26]}  Kh7 {[%clk 0:01:16]} 33. a5 {[%clk 0:00:26]}  Nxd5 {[%clk 0:01:06]} 34. a6 {[%clk 0:00:25]}  Rxf3 {[%clk 0:01:05]} 35. a7 {[%clk 0:00:20]}  Ra3 {[%clk 0:01:02]} 36. a8=Q {[%clk 0:00:20]}  Rxa8 {[%clk 0:01:01]} 37. Qxa8 {[%clk 0:00:21]}  Qg5 {[%clk 0:00:57]} 38. Rd1 {[%clk 0:00:20]}  Nf4 {[%clk 0:00:56]} 39. Qf3 {[%clk 0:00:19]}  d5 {[%clk 0:00:53]} 40. Kh2 {[%clk 0:00:19]}  d4 {[%clk 0:00:48]} 41. g3 {[%clk 0:00:19]}  Ng6 {[%clk 0:00:44]} 42. Qxf7 {[%clk 0:00:19]}  Qh5 {[%clk 0:00:41]} 43. Rc1 {[%clk 0:00:17]}  Qe5 {[%clk 0:00:36]} 44. Qc4 {[%clk 0:00:16]}  Qf6 {[%clk 0:00:30]} 45. Qc2 {[%clk 0:00:15]}  h5 {[%clk 0:00:27]} 46. h4 {[%clk 0:00:15]}  Kh6 {[%clk 0:00:22]} 47. Kg2 {[%clk 0:00:15]}  Ne5 {[%clk 0:00:19]} 48. Qe4 {[%clk 0:00:15]}  d3 {[%clk 0:00:17]} 49. Rxc5 {[%clk 0:00:14]}  d2 {[%clk 0:00:14]} 50. Rd5 {[%clk 0:00:14]}  Ng4 {[%clk 0:00:11]} 51. Rxd2 {[%clk 0:00:13]}  g6 {[%clk 0:00:09]} 52. f3 {[%clk 0:00:12]}  Qc3 {[%clk 0:00:06]} 53. Qf4+ {[%clk 0:00:11]}  Kg7 {[%clk 0:00:05]} 54. fxg4 {[%clk 0:00:12]}  hxg4 {[%clk 0:00:05]} 55. Qd4+ {[%clk 0:00:12]}  Qxd4 {[%clk 0:00:05]} 56. Rxd4 {[%clk 0:00:13]} 1-0


[Site "https://www.chess.com"]

[Event "Titled Tuesday Blitz May 30 Late 2023"]
[White "ElDivis"]
[Black "Leschinsky, Gary"]
[BlackFideId "30951321"]
[WhiteElo "2524"]
[BlackElo "1855"]
[Result "1-0"]
[Round "03"]
[TimeControl "180+2"]
[Date "2023.05.31"]
[WhiteClock "0:01:02"]
[BlackClock "0:00:18"]

1. e4 {[%clk 0:02:56]}  c5 {[%clk 0:02:54]} 2. Nc3 {[%clk 0:02:54]}  Nc6 {[%clk 0:02:51]} 3. f4 {[%clk 0:02:48]}  g6 {[%clk 0:02:50]} 4. Nf3 {[%clk 0:02:48]}  Bg7 {[%clk 0:02:47]} 5. Bc4 {[%clk 0:02:48]}  e6 {[%clk 0:02:45]} 6. f5 {[%clk 0:02:47]}  Nge7 {[%clk 0:02:42]} 7. fxe6 {[%clk 0:02:47]}  dxe6 {[%clk 0:02:41]} 8. d3 {[%clk 0:02:47]}  O-O {[%clk 0:02:40]} 9. Be3 {[%clk 0:02:43]}  Nd4 {[%clk 0:02:33]} 10. Qd2 {[%clk 0:02:38]}  a6 {[%clk 0:02:30]} 11. O-O-O {[%clk 0:02:34]}  b5 {[%clk 0:02:30]} 12. Bb3 {[%clk 0:02:34]}  Nec6 {[%clk 0:02:25]} 13. Bh6 {[%clk 0:02:29]}  a5 {[%clk 0:02:13]} 14. h4 {[%clk 0:02:07]}  a4 {[%clk 0:02:12]} 15. h5 {[%clk 0:02:06]}  axb3 {[%clk 0:02:08]} 16. Bxg7 {[%clk 0:01:59]}  bxa2 {[%clk 0:01:48]} 17. Nxa2 {[%clk 0:01:51]}  Rxa2 {[%clk 0:01:46]} 18. Qh6 {[%clk 0:01:51]}  Qa5 {[%clk 0:01:41]} 19. c3 {[%clk 0:01:40]}  Nb3+ {[%clk 0:01:05]} 20. Kc2 {[%clk 0:01:37]}  Qa4 {[%clk 0:01:04]} 21. Bxf8 {[%clk 0:01:32]}  Nbd4+ {[%clk 0:01:03]} 22. Kd2 {[%clk 0:01:32]}  Qc2+ {[%clk 0:00:42]} 23. Ke3 {[%clk 0:01:32]}  Qe2+ {[%clk 0:00:42]} 24. Kf4 {[%clk 0:01:32]}  e5+ {[%clk 0:00:40]} 25. Kg3 {[%clk 0:01:19]}  Ne6 {[%clk 0:00:19]} 26. hxg6 {[%clk 0:01:09]}  Rxb2 {[%clk 0:00:19]} 27. gxh7+ {[%clk 0:01:02]}  Kh8 {[%clk 0:00:18]} 28. Qf6+ {[%clk 0:01:02]} 1-0


[Site "https://www.chess.com"]